[Event "8th Menchik Memorial 2024"]
[Site "London"]
[Date "2024.03.25"]
[Round "8.2"]
[White "Sivanandan, Bodhana"]
[Black "Hryshchenko, Kamila"]
[Result "1/2-1/2"]
[ECO "C41"]
[WhiteElo "2088"]
[BlackElo "2186"]
[Annotator "RC"]
[PlyCount "100"]
[EventDate "2024.03.22"]
[EventType "tourn"]
[EventCountry "ENG"]
[SourceTitle "playchess.com"]
[Source "ChessBase"]
[SourceQuality "1"]
[TimeControl "5400+30"]

1. e4 {[%emt 0:11:49]} d6 {[%emt 0:00:21]} 2. d4 {[%emt 0:00:41]} Nf6 {[%emt 0:00:31]} 3. Nc3 {[%emt 0:00:25]} Nbd7 {[%emt 0:00:14]} 4. Nf3 {[%emt 0:00:48]} e5 {[%emt 0:00:08]} 5. Bc4 {[%emt 0:01:06]} h6 {[%emt 0:00:36]} 6. a4 {[%emt 0:01:42]} Be7 {[%emt 0:00:38]} 7. h3 {[%emt 0:01:21]} c6 {[%emt 0:00:17]} 8. Be3 {[%emt 0:01:36]} Qc7 {[%emt 0:00:21]} 9. Qd2 {[%emt 0:01:17]} b6 {[%emt 0:04:14]} 10. Qe2 {[%emt 0:06:17]} a6 {[%emt 0:01:57]} 11. Bb3 {[%emt 0:07:21]} Bb7 {[%emt 0:02:38]} 12. Nd2 {[%emt 0:02:31]} O-O {[%emt 0:04:17]} 13. O-O {[%emt 0:00:48]} Rfe8 {[%emt 0:01:14]} 14. Rae1 {[%emt 0:08:36]} Bf8 {[%emt 0:09:37]} 15. Qd3 {[%emt 0:11:39]} Rad8 {[%emt 0:04:19]} 16. f4 {[%emt 0:03:54]} b5 {[%emt 0:05:38]} 17. axb5 {[%emt 0:04:03]} cxb5 {[%emt 0:05:19]} 18. f5 {[%emt 0:08:24]} d5 {[%emt 0:23:48]} 19. Nxd5 {[%emt 0:08:21]} Bxd5 {[%emt 0:02:25]} 20. Bxd5 {[%emt 0:01:09]} Nxd5 {[%emt 0:01:09]} 21. exd5 {[%emt 0:00:18]} Nf6 {[%emt 0:00:29]} 22. c3 {[%emt 0:06:05]} Nxd5 {[%emt 0:09:04]} 23. Bf2 {[%emt 0:02:31]} Ne7 {[%emt 0:14:26]} 24. Nf3 {[%emt 0:02:34]} Nc6 {[%emt 0:01:20]} 25. f6 {[%emt 0:01:48]} exd4 {[%emt 0:03:42]} 26. Nxd4 {[%emt 0:00:57]} Nxd4 {[%emt 0:00:52]} 27. Bxd4 {[%emt 0:01:04]} Rxe1 {[%emt 0:00:05]} 28. Rxe1 {[%emt 0:00:10]} Qf4 {[%emt 0:02:18]} 29. Rf1 {[%emt 0:00:52]} Qg5 {[%emt 0:01:19]} 30. Rf5 {[%emt 0:01:27]} Qc1+ {[%emt 0:01:01]} 31. Qf1 {[%emt 0:01:02]} Qxf1+ {[%emt 0:00:30]} 32. Kxf1 {[%emt 0:00:59]} g5 {[%emt 0:00:08]} 33. Ke2 {[%emt 0:00:15]} Kh7 {[%emt 0:00:05]} 34. g4 {[%emt 0:00:07]} Kg6 {[%emt 0:00:23]} 35. Rf1 {[%emt 0:00:27]} Rd6 {[%emt 0:01:31]} 36. Kf3 {[%emt 0:00:39]} Re6 {[%emt 0:00:37]} 37. Ra1 {[%emt 0:00:15]} h5 {[%emt 0:00:44]} 38. b4 {[%emt 0:01:23]} Rc6 {[%emt 0:00:39]} 39. Ke4 {[%emt 0:01:07]} Re6+ {[%emt 0:00:04]} 40. Kd3 {[%emt 0:00:23]} Bh6 {[%emt 0:00:47]} 41. Rf1 {[%emt 0:00:25]} Bf8 {[%emt 0:00:25]} 42. Ra1 {[%emt 0:01:04]} Bh6 {[%emt 0:00:05]} 43. Ra2 {[%emt 0:00:43]} Bf8 {[%emt 0:00:06]} 44. Ra1 {[%emt 0:00:54]} Bh6 {[%emt 0:00:05]} 45. Rg1 {[%emt 0:00:39]} Re8 {[%emt 0:01:06]} 46. Rf1 {[%emt 0:00:47]} Re6 {[%emt 0:00:03]} 47. Ra1 {[%emt 0:00:36]} Bf8 {[%emt 0:00:04]} 48. Ra2 {[%emt 0:00:20]} Bh6 {[%emt 0:00:06]} 49. Ra1 {[%emt 0:00:29]} Bf8 {[%emt 0:00:04]} 50. Ra2 {[%emt 0:00:16]} Bh6 {[%emt 0:00:05]} 1/2-1/2

[Event "8th Menchik Memorial 2024"]
[Site "London"]
[Date "2024.03.25"]
[Round "8.3"]
[White "Subramanian, Anusha"]
[Black "Steil-Antoni, Fiona"]
[Result "1-0"]
[ECO "C44"]
[WhiteElo "1997"]
[BlackElo "2154"]
[Annotator "RC"]
[PlyCount "91"]
[EventDate "2024.03.22"]
[EventType "tourn"]
[EventCountry "ENG"]
[SourceTitle "playchess.com"]
[Source "ChessBase"]
[SourceQuality "1"]
[TimeControl "5400+30"]

1. e4 {[%emt 0:00:03]} e5 {[%emt 0:02:27]} 2. Nf3 {[%emt 0:00:06]} Nc6 {[%emt 0:00:21]} 3. g3 {[%emt 0:00:08]} Bc5 {[%emt 0:02:04]} 4. Bg2 {[%emt 0:00:14]} d6 {[%emt 0:01:58]} 5. c3 {[%emt 0:00:38]} Nf6 {[%emt 0:01:04]} 6. d3 {[%emt 0:00:20]} O-O {[%emt 0:00:35]} 7. b4 {[%emt 0:00:40]} Bb6 {[%emt 0:00:12]} 8. O-O {[%emt 0:00:23]} a6 {[%emt 0:10:38]} 9. Nbd2 {[%emt 0:04:37]} Be6 {[%emt 0:06:31]} 10. Re1 {[%emt 0:08:37]} Ng4 {[%emt 0:01:18]} 11. Re2 {[%emt 0:01:37]} f5 {[%emt 0:01:03]} 12. h3 {[%emt 0:01:12]} Nf6 {[%emt 0:04:53]} 13. Ng5 {[%emt 0:02:05]} Qe8 {[%emt 0:04:33]} 14. d4 {[%emt 0:12:12]} Bd7 {[%emt 0:10:20]} 15. exf5 {[%emt 0:04:41]} Bxf5 {[%emt 0:02:05]} 16. Nc4 {[%emt 0:07:06]} Ba7 {[%emt 0:05:17]} 17. Qb3 {[%emt 0:05:16]} Kh8 {[%emt 0:02:30]} 18. dxe5 {[%emt 0:06:56]} Bd3 {[%emt 0:09:17]} 19. Bxc6 {[%emt 0:05:08]} bxc6 {[%emt 0:03:25]} 20. Rd2 {[%emt 0:02:34]} Bxc4 {[%emt 0:01:08]} 21. Qxc4 {[%emt 0:00:14]} Qxe5 {[%emt 0:01:07]} 22. Qh4 {[%emt 0:19:08]} h6 {[%emt 0:21:01]} 23. Rc2 {[%emt 0:05:59]} Qe1+ {[%emt 0:01:20]} 24. Kg2 {[%emt 0:02:23]} Ng4 {[%emt 0:06:22]} 25. Bf4 {[%emt 0:05:47]} Qxa1 {[%emt 0:00:02]} 26. hxg4 {[%emt 0:00:14]} Qe1 {[%emt 0:00:58]} 27. Nf3 {[%emt 0:02:11]} Qe4 {[%emt 0:00:08]} 28. Rc1 {[%emt 0:00:32]} Rae8 {[%emt 0:01:08]} 29. g5 {[%emt 0:00:40]} Qg6 {[%emt 0:00:42]} 30. gxh6 {[%emt 0:00:24]} Rxf4 {[%emt 0:00:30]} 31. Qxf4 {[%emt 0:00:42]} gxh6 {[%emt 0:00:24]} 32. Rh1 {[%emt 0:00:23]} Kg7 {[%emt 0:00:13]} 33. Rh4 {[%emt 0:01:24]} Kh7 {[%emt 0:00:47]} 34. Rg4 {[%emt 0:00:55]} Qe6 {[%emt 0:00:27]} 35. Rh4 {[%emt 0:00:23]} Kg7 {[%emt 0:00:39]} 36. Nd4 {[%emt 0:00:42]} Qd5+ {[%emt 0:00:18]} 37. Kh2 {[%emt 0:00:34]} Bxd4 {[%emt 0:00:43]} 38. Qxh6+ {[%emt 0:00:16]} Kf7 {[%emt 0:00:13]} 39. Rxd4 {[%emt 0:00:26]} Qe5 {[%emt 0:00:26]} 40. Qh7+ {[%emt 0:00:15]} Kf6 {[%emt 0:00:41]} 41. Rf4+ {[%emt 0:00:32]} Kg5 {[%emt 0:00:30]} 42. Rh4 {[%emt 0:00:36]} Qe2 {[%emt 0:00:40]} 43. Qh6+ {[%emt 0:00:46]} Kf5 {[%emt 0:00:05]} 44. Rf4+ {[%emt 0:00:31]} Ke5 {[%emt 0:00:06]} 45. Qf6+ {[%emt 0:00:12]} Kd5 {[%emt 0:00:13]} 46. Rd4# {[%emt 0:01:02]} 1-0

[Event "8th Menchik Memorial 2024"]
[Site "London"]
[Date "2024.03.25"]
[Round "8.5"]
[White "Cosman, Andreea-Marioara"]
[Black "Garcia Martin, Marta"]
[Result "1/2-1/2"]
[ECO "D37"]
[WhiteElo "2115"]
[BlackElo "2356"]
[Annotator "RC"]
[PlyCount "66"]
[EventDate "2024.03.22"]
[EventType "tourn"]
[EventCountry "ENG"]
[SourceTitle "playchess.com"]
[Source "ChessBase"]
[SourceQuality "1"]
[TimeControl "5400+30"]

1. d4 {[%emt 0:00:03]} e6 {[%emt 0:05:01]} 2. c4 {[%emt 0:00:08]} Nf6 {[%emt 0:00:05]} 3. Nc3 {[%emt 0:00:06]} Bb4 {[%emt 0:00:04]} 4. e3 {[%emt 0:00:08]} O-O {[%emt 0:00:14]} 5. Bd3 {[%emt 0:00:24]} d5 {[%emt 0:00:37]} 6. Nf3 {[%emt 0:00:07]} c5 {[%emt 0:00:39]} 7. O-O {[%emt 0:00:08]} Nc6 {[%emt 0:00:04]} 8. cxd5 {[%emt 0:00:17]} exd5 {[%emt 0:00:08]} 9. dxc5 {[%emt 0:00:06]} Bxc5 {[%emt 0:00:30]} 10. h3 {[%emt 0:00:07]} Be6 {[%emt 0:08:53]} 11. b3 {[%emt 0:00:52]} a6 {[%emt 0:01:27]} 12. Bb2 {[%emt 0:02:00]} Qe7 {[%emt 0:00:44]} 13. Qb1 {[%emt 0:07:28]} Rad8 {[%emt 0:06:09]} 14. Ne2 {[%emt 0:10:58]} Ba3 {[%emt 0:36:33]} 15. Bxa3 {[%emt 0:09:21]} Qxa3 {[%emt 0:00:07]} 16. Ned4 {[%emt 0:00:29]} Nxd4 {[%emt 0:02:18]} 17. Nxd4 {[%emt 0:00:09]} Rc8 {[%emt 0:00:38]} 18. Qd1 {[%emt 0:18:39]} Rc7 {[%emt 0:06:23]} 19. Qf3 {[%emt 0:04:46]} Rfc8 {[%emt 0:00:45]} 20. Qf4 {[%emt 0:03:35]} Bd7 {[%emt 0:08:27]} 21. Bf5 {[%emt 0:05:00]} Qe7 {[%emt 0:11:35]} 22. Rad1 {[%emt 0:07:42]} g6 {[%emt 0:02:12]} 23. Bb1 {[%emt 0:07:45]} a5 {[%emt 0:01:38]} 24. Rfe1 {[%emt 0:02:45]} Kg7 {[%emt 0:01:12]} 25. Nf3 {[%emt 0:04:08]} a4 {[%emt 0:00:58]} 26. Qd4 {[%emt 0:02:50]} axb3 {[%emt 0:00:31]} 27. axb3 {[%emt 0:00:06]} Be6 {[%emt 0:00:37]} 28. Ng5 {[%emt 0:06:22]} h6 {[%emt 0:02:13]} 29. Nxe6+ {[%emt 0:03:33]} Qxe6 {[%emt 0:00:07]} 30. Bd3 {[%emt 0:00:35]} Kh7 {[%emt 0:02:30]} 31. Qf4 {[%emt 0:01:23]} Kg7 {[%emt 0:01:55]} 32. Qd4 {[%emt 0:00:14]} Kh7 {[%emt 0:00:16]} 33. Qf4 {[%emt 0:00:05]} Kg7 {[%emt 0:00:11]} 1/2-1/2

[Event "8th Menchik Memorial 2024"]
[Site "London"]
[Date "2024.03.26"]
[Round "9.1"]
[White "Garcia Martin, Marta"]
[Black "Arakhamia-Grant, Ketevan"]
[Result "0-1"]
[ECO "B50"]
[WhiteElo "2356"]
[BlackElo "2290"]
[Annotator "RC"]
[PlyCount "168"]
[EventDate "2024.03.22"]
[EventType "tourn"]
[EventCountry "ENG"]
[SourceTitle "playchess.com"]
[Source "ChessBase"]
[SourceQuality "1"]
[TimeControl "5400+30"]

1. e4 {[%emt 0:00:03]} c5 {[%emt 0:00:08]} 2. Nf3 {[%emt 0:00:12]} e6 {[%emt 0:00:06]} 3. b3 {[%emt 0:00:30]} d6 {[%emt 0:02:08]} 4. d4 {[%emt 0:01:15]} cxd4 {[%emt 0:00:24]} 5. Nxd4 {[%emt 0:00:04]} Nf6 {[%emt 0:00:30]} 6. Nc3 {[%emt 0:09:27]} a6 {[%emt 0:08:36]} 7. Bb2 {[%emt 0:02:20]} b5 {[%emt 0:00:57]} 8. Bd3 {[%emt 0:07:36]} Bb7 {[%emt 0:01:33]} 9. O-O {[%emt 0:09:11]} Nbd7 {[%emt 0:01:16]} 10. Qe2 {[%emt 0:05:35]} Be7 {[%emt 0:05:06]} 11. a4 {[%emt 0:07:41]} b4 {[%emt 0:07:58]} 12. Na2 {[%emt 0:00:13]} Qb6 {[%emt 0:09:55]} 13. c3 {[%emt 0:05:17]} bxc3 {[%emt 0:12:37]} 14. Bxc3 {[%emt 0:07:20]} d5 {[%emt 0:01:00]} 15. a5 {[%emt 0:15:53]} Qa7 {[%emt 0:21:48]} 16. e5 {[%emt 0:00:52]} Ne4 {[%emt 0:00:34]} 17. Bxe4 {[%emt 0:02:40]} dxe4 {[%emt 0:00:07]} 18. Rad1 {[%emt 0:10:52]} Rd8 {[%emt 0:07:25]} 19. Nb4 {[%emt 0:06:51]} Qc5 {[%emt 0:03:34]} 20. Rc1 {[%emt 0:00:11]} O-O {[%emt 0:01:32]} 21. Nxa6 {[%emt 0:01:16]} Qa7 {[%emt 0:02:49]} 22. Nc7 {[%emt 0:00:28]} Nc5 {[%emt 0:00:59]} 23. Ndb5 {[%emt 0:00:19]} Ba6 {[%emt 0:05:00]} 24. Nxa6 {[%emt 0:03:01]} Qxa6 {[%emt 0:00:05]} 25. Bb4 {[%emt 0:00:20]} Nxb3 {[%emt 0:02:49]} 26. Bxe7 {[%emt 0:00:19]} Nxc1 {[%emt 0:00:06]} 27. Rxc1 {[%emt 0:00:12]} Rc8 {[%emt 0:00:15]} 28. Re1 {[%emt 0:03:39]} Rfe8 {[%emt 0:00:36]} 29. Bh4 {[%emt 0:00:45]} Rc5 {[%emt 0:02:25]} 30. Nd4 {[%emt 0:00:28]} Qxe2 {[%emt 0:01:35]} 31. Nxe2 {[%emt 0:00:02]} Rxe5 {[%emt 0:01:24]} 32. Ra1 {[%emt 0:00:28]} Ra8 {[%emt 0:00:17]} 33. a6 {[%emt 0:00:29]} Rb5 {[%emt 0:00:33]} 34. Nc3 {[%emt 0:00:59]} Rb6 {[%emt 0:00:29]} 35. Nxe4 {[%emt 0:00:39]} Raxa6 {[%emt 0:00:47]} 36. Rd1 {[%emt 0:00:29]} h6 {[%emt 0:00:28]} 37. f3 {[%emt 0:00:29]} Rb2 {[%emt 0:00:19]} 38. Bg3 {[%emt 0:00:31]} Raa2 {[%emt 0:00:21]} 39. Nf2 {[%emt 0:00:07]} g5 {[%emt 0:00:31]} 40. Rf1 {[%emt 0:00:34]} f5 {[%emt 0:00:32]} 41. f4 {[%emt 0:00:25]} Kf7 {[%emt 0:00:32]} 42. h4 {[%emt 0:00:50]} g4 {[%emt 0:00:39]} 43. h5 {[%emt 0:00:23]} Rd2 {[%emt 0:00:22]} 44. Rb1 {[%emt 0:00:33]} e5 {[%emt 0:00:33]} 45. Rb7+ {[%emt 0:00:18]} Ke8 {[%emt 0:00:26]} 46. Rb8+ {[%emt 0:00:49]} Kd7 {[%emt 0:00:20]} 47. fxe5 {[%emt 0:00:32]} f4 {[%emt 0:00:07]} 48. e6+ {[%emt 0:00:31]} Kxe6 {[%emt 0:00:28]} 49. Rb6+ {[%emt 0:00:25]} Kd5 {[%emt 0:00:35]} 50. Rd6+ {[%emt 0:00:27]} Kxd6 {[%emt 0:01:03]} 51. Bxf4+ {[%emt 0:00:12]} Ke6 {[%emt 0:00:34]} 52. Bxd2 {[%emt 0:00:02]} g3 {[%emt 0:00:22]} 53. Be1 {[%emt 0:00:27]} gxf2+ {[%emt 0:00:47]} 54. Bxf2 {[%emt 0:00:03]} Kf5 {[%emt 0:00:09]} 55. Be3 {[%emt 0:00:35]} Ra6 {[%emt 0:00:06]} 56. g3 {[%emt 0:01:47]} Kg4 {[%emt 0:01:00]} 57. Bf4 {[%emt 0:00:16]} Kxh5 {[%emt 0:00:20]} 58. Kf2 {[%emt 0:00:26]} Kg4 {[%emt 0:00:11]} 59. Ke3 {[%emt 0:00:30]} h5 {[%emt 0:00:52]} 60. Bc7 {[%emt 0:00:37]} Rc6 {[%emt 0:00:47]} 61. Bb8 {[%emt 0:00:16]} Rb6 {[%emt 0:00:25]} 62. Bc7 {[%emt 0:00:07]} Rb2 {[%emt 0:00:16]} 63. Bd6 {[%emt 0:01:15]} Rg2 {[%emt 0:00:15]} 64. Bc7 {[%emt 0:00:03]} Rxg3+ {[%emt 0:00:21]} 65. Kf2 {[%emt 0:00:09]} Rb3 {[%emt 0:00:44]} 66. Bd6 {[%emt 0:01:08]} Kh3 {[%emt 0:00:45]} 67. Kg1 {[%emt 0:00:17]} Rb1+ {[%emt 0:00:20]} 68. Kf2 {[%emt 0:00:03]} Rb6 {[%emt 0:00:14]} 69. Be5 {[%emt 0:01:18]} Re6 {[%emt 0:00:19]} 70. Bc7 {[%emt 0:01:09]} Rg6 {[%emt 0:00:23]} 71. Kf1 {[%emt 0:00:00]} Rg4 {[%emt 0:01:20]} 72. Kf2 {[%emt 0:00:13]} Kh4 {[%emt 0:00:42]} 73. Bd8+ {[%emt 0:00:08]} Kh3 {[%emt 0:00:03]} 74. Bc7 {[%emt 0:00:05]} Rc4 {[%emt 0:00:32]} 75. Be5 {[%emt 0:00:57]} Rc1 {[%emt 0:00:35]} 76. Bd6 {[%emt 0:00:23]} Kg4 {[%emt 0:00:40]} 77. Kg2 {[%emt 0:00:44]} Rc2+ {[%emt 0:00:14]} 78. Kg1 {[%emt 0:00:53]} Kh3 {[%emt 0:00:41]} 79. Be5 {[%emt 0:00:25]} Rg2+ {[%emt 0:00:32]} 80. Kf1 {[%emt 0:00:30]} Rg5 {[%emt 0:00:45]} 81. Bc7 {[%emt 0:00:17]} Rg7 {[%emt 0:00:22]} 82. Bd6 {[%emt 0:00:11]} Rg6 {[%emt 0:00:17]} 83. Be5 {[%emt 0:00:24]} Kg4 {[%emt 0:00:21]} 84. Bc7 {[%emt 0:00:50]} Kf3 {[%emt 0:00:10]} 0-1

[Event "8th Menchik Memorial 2024"]
[Site "London"]
[Date "2024.03.26"]
[Round "9.3"]
[White "Steil-Antoni, Fiona"]
[Black "Hunt, Harriet V"]
[Result "0-1"]
[ECO "B23"]
[WhiteElo "2154"]
[BlackElo "2307"]
[Annotator "RC"]
[PlyCount "64"]
[EventDate "2024.03.22"]
[EventType "tourn"]
[EventCountry "ENG"]
[SourceTitle "playchess.com"]
[Source "ChessBase"]
[SourceQuality "1"]
[TimeControl "5400+30"]

1. e4 {[%emt 0:00:02]} c5 {[%emt 0:00:06]} 2. Nc3 {[%emt 0:00:05]} a6 {[%emt 0:00:13]} 3. d4 {[%emt 0:00:09]} cxd4 {[%emt 0:00:31]} 4. Qxd4 {[%emt 0:00:03]} Nc6 {[%emt 0:00:29]} 5. Qe3 {[%emt 0:00:03]} Nf6 {[%emt 0:11:14]} 6. Nf3 {[%emt 0:00:52]} d5 {[%emt 0:01:47]} 7. e5 {[%emt 0:09:06]} d4 {[%emt 0:02:18]} 8. Qe2 {[%emt 0:09:59]} dxc3 {[%emt 0:02:37]} 9. exf6 {[%emt 0:00:13]} Qa5 {[%emt 0:03:00]} 10. b3 {[%emt 0:02:53]} gxf6 {[%emt 0:00:19]} 11. g3 {[%emt 0:00:24]} Bg7 {[%emt 0:07:07]} 12. Bg2 {[%emt 0:01:16]} O-O {[%emt 0:00:23]} 13. O-O {[%emt 0:00:23]} Bf5 {[%emt 0:01:44]} 14. Be3 {[%emt 0:01:28]} Rfd8 {[%emt 0:01:20]} 15. Nh4 {[%emt 0:04:16]} Be6 {[%emt 0:06:05]} 16. a3 {[%emt 0:01:22]} Qb5 {[%emt 0:04:35]} 17. Qf3 {[%emt 0:03:04]} Bd5 {[%emt 0:02:47]} 18. Qg4 {[%emt 0:02:11]} Ne5 {[%emt 0:01:23]} 19. Qh5 {[%emt 0:08:15]} Bxg2 {[%emt 0:00:52]} 20. Kxg2 {[%emt 0:01:16]} e6 {[%emt 0:01:15]} 21. Rfd1 {[%emt 0:02:30]} Rd5 {[%emt 0:06:56]} 22. a4 {[%emt 0:01:44]} Qc6 {[%emt 0:00:30]} 23. Rxd5 {[%emt 0:01:36]} Qxd5+ {[%emt 0:00:12]} 24. Kg1 {[%emt 0:00:52]} Rd8 {[%emt 0:01:47]} 25. Qe2 {[%emt 0:01:06]} Rd7 {[%emt 0:03:34]} 26. a5 {[%emt 0:02:49]} f5 {[%emt 0:01:20]} 27. h3 {[%emt 0:00:45]} Nc6 {[%emt 0:03:58]} 28. Qh5 {[%emt 0:00:56]} f4 {[%emt 0:02:29]} 29. Qxd5 {[%emt 0:00:05]} Rxd5 {[%emt 0:00:03]} 30. Bxf4 {[%emt 0:00:26]} Nb4 {[%emt 0:03:26]} 31. Ra4 {[%emt 0:01:48]} Nxc2 {[%emt 0:01:44]} 32. Rc4 {[%emt 0:00:11]} Bf6 {[%emt 0:00:30]} 0-1

[Event "8th Menchik Memorial 2024"]
[Site "London"]
[Date "2024.03.26"]
[Round "9.4"]
[White "Hryshchenko, Kamila"]
[Black "Subramanian, Anusha"]
[Result "1-0"]
[ECO "C65"]
[WhiteElo "2186"]
[BlackElo "1997"]
[Annotator "RC"]
[PlyCount "109"]
[EventDate "2024.03.22"]
[EventType "tourn"]
[EventCountry "ENG"]
[SourceTitle "playchess.com"]
[Source "ChessBase"]
[SourceQuality "1"]
[TimeControl "5400+30"]

1. e4 {[%emt 0:00:02]} e5 {[%emt 0:00:05]} 2. Nf3 {[%emt 0:00:06]} Nc6 {[%emt 0:00:04]} 3. Bb5 {[%emt 0:00:05]} Nf6 {[%emt 0:00:05]} 4. d3 {[%emt 0:00:16]} Bc5 {[%emt 0:00:05]} 5. c3 {[%emt 0:00:31]} O-O {[%emt 0:01:27]} 6. O-O {[%emt 0:01:46]} d6 {[%emt 0:02:29]} 7. h3 {[%emt 0:00:26]} a6 {[%emt 0:01:01]} 8. Ba4 {[%emt 0:00:21]} b5 {[%emt 0:01:16]} 9. Bc2 {[%emt 0:00:34]} h6 {[%emt 0:02:11]} 10. Be3 {[%emt 0:06:03]} Bxe3 {[%emt 0:01:50]} 11. fxe3 {[%emt 0:00:05]} d5 {[%emt 0:00:26]} 12. Qe1 {[%emt 0:05:12]} dxe4 {[%emt 0:02:02]} 13. dxe4 {[%emt 0:00:04]} Be6 {[%emt 0:04:21]} 14. Nbd2 {[%emt 0:00:54]} Qe7 {[%emt 0:03:17]} 15. b4 {[%emt 0:03:16]} a5 {[%emt 0:05:58]} 16. a3 {[%emt 0:00:14]} Rfb8 {[%emt 0:06:51]} 17. Bd3 {[%emt 0:06:39]} Rb7 {[%emt 0:11:13]} 18. Qe2 {[%emt 0:02:09]} Rab8 {[%emt 0:00:26]} 19. Nh4 {[%emt 0:01:00]} Nd8 {[%emt 0:10:16]} 20. Nf5 {[%emt 0:03:26]} Bxf5 {[%emt 0:00:23]} 21. Rxf5 {[%emt 0:03:36]} axb4 {[%emt 0:01:54]} 22. axb4 {[%emt 0:03:29]} c5 {[%emt 0:00:40]} 23. Raf1 {[%emt 0:05:15]} cxb4 {[%emt 0:09:29]} 24. cxb4 {[%emt 0:00:16]} Qd6 {[%emt 0:00:59]} 25. Bc2 {[%emt 0:07:48]} Nc6 {[%emt 0:01:34]} 26. Bb3 {[%emt 0:01:46]} Ne7 {[%emt 0:01:46]} 27. R5f2 {[%emt 0:00:30]} Rd8 {[%emt 0:02:09]} 28. Rxf6 {[%emt 0:02:54]} gxf6 {[%emt 0:02:06]} 29. Qh5 {[%emt 0:00:29]} Nc8 {[%emt 0:08:40]} 30. Qg6+ {[%emt 0:00:17]} Kf8 {[%emt 0:00:31]} 31. Rxf6 {[%emt 0:00:13]} Qxf6 {[%emt 0:04:46]} 32. Qxf6 {[%emt 0:00:05]} Rxd2 {[%emt 0:00:30]} 33. Qh8+ {[%emt 0:00:03]} Ke7 {[%emt 0:00:07]} 34. Qxc8 {[%emt 0:00:07]} Rdd7 {[%emt 0:01:01]} 35. Qc5+ {[%emt 0:00:17]} Kf6 {[%emt 0:00:32]} 36. Bd5 {[%emt 0:00:10]} Rbc7 {[%emt 0:01:07]} 37. Qxb5 {[%emt 0:00:31]} Rc1+ {[%emt 0:00:28]} 38. Kh2 {[%emt 0:00:05]} Rdc7 {[%emt 0:00:06]} 39. Qa6+ {[%emt 0:00:28]} Kg7 {[%emt 0:00:48]} 40. b5 {[%emt 0:00:16]} Rb1 {[%emt 0:00:45]} 41. Qd6 {[%emt 0:01:09]} Rcc1 {[%emt 0:01:09]} 42. Qxe5+ {[%emt 0:00:21]} Kf8 {[%emt 0:00:39]} 43. Qd6+ {[%emt 0:00:11]} Kg7 {[%emt 0:00:18]} 44. b6 {[%emt 0:00:11]} h5 {[%emt 0:00:16]} 45. e5 {[%emt 0:00:52]} Rf1 {[%emt 0:00:34]} 46. Bf3 {[%emt 0:00:58]} h4 {[%emt 0:00:33]} 47. Qf6+ {[%emt 0:00:16]} Kg8 {[%emt 0:00:30]} 48. Qxh4 {[%emt 0:00:07]} Rb2 {[%emt 0:00:30]} 49. b7 {[%emt 0:00:24]} Rfb1 {[%emt 0:01:07]} 50. Be4 {[%emt 0:01:09]} Rxb7 {[%emt 0:00:49]} 51. Qh7+ {[%emt 0:00:06]} Kf8 {[%emt 0:00:05]} 52. Qh8+ {[%emt 0:00:07]} Ke7 {[%emt 0:00:06]} 53. Qf6+ {[%emt 0:00:04]} Kf8 {[%emt 0:00:19]} 54. Bxb7 {[%emt 0:00:04]} Rxb7 {[%emt 0:00:09]} 55. h4 {[%emt 0:00:06]} 1-0